[Event "DVM U20w 2021"]
[Site "Kiel"]
[Date "2022.07.24"]
[Round "3"]
[White "Tabakh, Najat"]
[Black "Schwarzfischer, Julia"]
[Result "1-0"]
[ECO "C44"]
[WhiteElo "1313"]
[BlackElo "1314"]
[Annotator "NA RC COMBH"]
[PlyCount "131"]
[EventDate "2022.07.23"]
[EventType "team-tourn"]
[EventRounds "7"]
[EventCountry "GER"]
[SourceTitle "playchess.com"]
[Source "ChessBase"]
[SourceQuality "1"]
[TimeControl "40/5400+30:1800+30"]

1. e4 {[%emt 0:00:04]} e5 {[%emt 0:00:07]} 2. Nf3 {[%emt 0:00:08]} Nc6 {[%emt 0:00:07]} 3. c3 {[%emt 0:00:18]} Nf6 {[%emt 0:00:07]} 4. d4 {[%emt 0:00:33]} exd4 {[%emt 0:00:18]} 5. e5 {[%emt 0:00:12]} Qe7 {[%emt 0:01:08]} 6. cxd4 {[%emt 0:00:32]} d6 {[%emt 0:00:30]} 7. Bf4 {[%emt 0:01:32]} Bg4 {[%emt 0:01:03]} 8. Bb5 {[%emt 0:01:46]} dxe5 {[%emt 0:00:53]} 9. Bxc6+ {[%emt 0:01:01]} bxc6 {[%emt 0:00:06]} 10. Bxe5 {[%emt 0:01:23]} Qe6 {[%emt 0:01:14]} 11. O-O {[%emt 0:01:07]} Be7 {[%emt 0:00:42]} 12. Re1 {[%emt 0:01:02]} O-O {[%emt 0:00:51]} 13. Bxc7 {[%emt 0:03:11]} Bxf3 {[%emt 0:03:49]} 14. Rxe6 {[%emt 0:01:20]} Bxd1 {[%emt 0:00:12]} 15. Rxe7 {[%emt 0:00:23]} Nd5 {[%emt 0:00:16]} 16. Re1 {[%emt 0:02:01]} Nxc7 {[%emt 0:00:55]} 17. Rxd1 {[%emt 0:00:16]} Rad8 {[%emt 0:00:20]} 18. Nc3 {[%emt 0:00:30]} Rd7 {[%emt 0:01:07]} 19. Rd2 {[%emt 0:01:05]} Re8 {[%emt 0:00:33]} 20. g3 {[%emt 0:01:10]} Ne6 {[%emt 0:00:15]} 21. Rad1 {[%emt 0:01:16]} Ng5 {[%emt 0:00:27]} 22. Kg2 {[%emt 0:00:52]} Red8 {[%emt 0:00:33]} 23. h4 {[%emt 0:07:05]} Ne6 {[%emt 0:00:08]} 24. d5 {[%emt 0:00:49]} Nc7 {[%emt 0:00:37]} 25. d6 {[%emt 0:07:17]} Ne8 {[%emt 0:00:27]} 26. Ne4 {[%emt 0:04:56]} f5 {[%emt 0:00:10]} 27. Nc5 {[%emt 0:01:29]} Rxd6 {[%emt 0:00:15]} 28. Rxd6 {[%emt 0:00:46]} Rxd6 {[%emt 0:00:21]} 29. Rxd6 {[%emt 0:00:17]} Nxd6 {[%emt 0:00:07]} 30. Ne6 {[%emt 0:00:37]} g6 {[%emt 0:00:38]} 31. Nd4 {[%emt 0:00:52]} c5 {[%emt 0:00:08]} 32. Nc6 {[%emt 0:00:13]} a6 {[%emt 0:00:33]} 33. b3 {[%emt 0:01:25]} Kf7 {[%emt 0:00:47]} 34. Ne5+ {[%emt 0:00:15]} Ke6 {[%emt 0:00:33]} 35. Nf3 {[%emt 0:00:34]} Ne4 {[%emt 0:00:28]} 36. Ne1 {[%emt 0:05:22]} Nc3 {[%emt 0:04:15]} 37. Nd3 {[%emt 0:01:33]} Kd6 {[%emt 0:00:41]} 38. Nc1 {[%emt 0:00:37]} Kd5 {[%emt 0:00:09]} 39. Kf3 {[%emt 0:02:17]} a5 {[%emt 0:00:36]} 40. Kf4 {[%emt 0:03:53]} h6 {[%emt 0:00:14]} 41. h5 {[%emt 0:32:46]} gxh5 {[%emt 0:30:40]} 42. Kxf5 {[%emt 0:00:32]} c4 {[%emt 0:00:32]} 43. Kg6 {[%emt 0:01:14]} cxb3 {[%emt 0:00:08]} 44. axb3 {[%emt 0:00:10]} Ke4 {[%emt 0:00:29]} 45. Kxh5 {[%emt 0:01:15]} Nd5 {[%emt 0:00:45]} 46. f4 {[%emt 0:06:29]} Kf5 {[%emt 0:01:17]} 47. Kxh6 {[%emt 0:03:09]} Nf6 {[%emt 0:02:16]} 48. Ne2 {[%emt 0:03:07]} Ne4 {[%emt 0:03:02]} 49. Nd4+ {[%emt 0:07:08]} Kf6 {[%emt 0:01:11]} 50. g4 {[%emt 0:05:02]} Kf7 {[%emt 0:00:16]} 51. g5 {[%emt 0:00:36]} Kg8 {[%emt 0:02:05]} 52. f5 {[%emt 0:01:59]} Nd6 {[%emt 0:00:33]} 53. Kg6 {[%emt 0:02:15]} Ne4 {[%emt 0:00:55]} 54. Nc6 {[%emt 0:01:39]} Nc5 {[%emt 0:00:53]} 55. Nxa5 {[%emt 0:00:27]} Kh8 {[%emt 0:00:28]} 56. Kf7 {[%emt 0:00:42]} Ne4 {[%emt 0:00:14]} 57. g6 {[%emt 0:00:30]} Nd6+ {[%emt 0:00:36]} 58. Kf6 {[%emt 0:00:41]} Ne4+ {[%emt 0:00:18]} 59. Ke5 {[%emt 0:01:40]} Nc5 {[%emt 0:01:03]} 60. f6 {[%emt 0:01:06]} Nd7+ {[%emt 0:00:09]} 61. Ke6 {[%emt 0:00:42]} Nc5+ {[%emt 0:00:26]} 62. Kf7 {[%emt 0:00:22]} Ne6 {[%emt 0:00:33]} 63. g7+ {[%emt 0:00:25]} Nxg7 {[%emt 0:00:09]} 64. fxg7+ {[%emt 0:00:07]} Kh7 {[%emt 0:00:05]} 65. g8=Q+ {[%emt 0:00:10]} Kh6 {[%emt 0:00:04]} 66. Qg6# {[%emt 0:00:10]} 1-0

[Event "DVM U20w 2021"]
[Site "Kiel"]
[Date "2022.07.24"]
[Round "3"]
[White "Hoffmann, Sophia"]
[Black "Sereda, Yaroslava"]
[Result "0-1"]
[ECO "D02"]
[WhiteElo "1214"]
[BlackElo "1781"]
[Annotator "NA RC COMBH"]
[PlyCount "63"]
[EventDate "2022.07.23"]
[EventType "team-tourn"]
[EventRounds "7"]
[EventCountry "GER"]
[SourceTitle "playchess.com"]
[Source "ChessBase"]
[SourceQuality "1"]
[TimeControl "40/5400+30:1800+30"]

1. d4 {[%emt 0:00:03]} d5 {[%emt 0:00:10]} 2. Bf4 {[%emt 0:00:11]} Nf6 {[%emt 0:00:16]} 3. Nf3 {[%emt 0:00:11]} e6 {[%emt 0:00:14]} 4. e3 {[%emt 0:00:10]} Bd6 {[%emt 0:00:47]} 5. Bg3 {[%emt 0:00:42]} O-O {[%emt 0:02:29]} 6. c4 {[%emt 0:00:36]} c5 {[%emt 0:09:06]} 7. Nc3 {[%emt 0:03:48]} cxd4 {[%emt 0:05:00]} 8. exd4 {[%emt 0:02:41]} Nc6 {[%emt 0:11:30]} 9. c5 {[%emt 0:07:10]} Bxg3 {[%emt 0:02:42]} 10. hxg3 {[%emt 0:00:46]} b6 {[%emt 0:04:42]} 11. Qc2 {[%emt 0:05:31]} bxc5 {[%emt 0:00:00]} 12. Bd3 {[%emt 0:12:30]} g6 {[%emt 0:13:37]} 13. dxc5 {[%emt 0:05:05]} e5 {[%emt 0:05:34]} 14. Ng5 {[%emt 0:07:28]} Nb4 {[%emt 0:13:33]} 15. Qd2 {[%emt 0:03:20]} Nxd3+ {[%emt 0:04:23]} 16. Qxd3 {[%emt 0:00:23]} Qa5 {[%emt 0:01:58]} 17. O-O-O {[%emt 0:05:06]} Qxc5 {[%emt 0:04:36]} 18. Qf3 {[%emt 0:13:14]} Bf5 {[%emt 0:05:38]} 19. g4 {[%emt 0:05:55]} e4 {[%emt 0:07:15]} 20. Qh3 {[%emt 0:03:19]} Bxg4 {[%emt 0:04:07]} 21. Qh6 {[%emt 0:01:29]} Rfd8 {[%emt 0:02:31]} 22. Nxh7 {[%emt 0:01:50]} Qd6 {[%emt 0:00:45]} 23. Ng5 {[%emt 0:03:34]} Qf4+ {[%emt 0:00:20]} 24. Kb1 {[%emt 0:01:03]} Bh5 {[%emt 0:00:34]} 25. g3 {[%emt 0:07:37]} Qf5 {[%emt 0:00:33]} 26. Rdg1 {[%emt 0:00:48]} e3+ {[%emt 0:00:24]} 27. Ka1 {[%emt 0:01:13]} exf2 {[%emt 0:00:17]} 28. Rf1 {[%emt 0:01:44]} Re8 {[%emt 0:00:40]} 29. a3 {[%emt 0:03:06]} Rab8 {[%emt 0:00:32]} 30. Rb1 {[%emt 0:04:15]} Re1 {[%emt 0:00:43]} 31. Rd1 {[%emt 0:00:27]} Rxh1 32. Rxh1 {[%emt 0:00:30]} 0-1

[Event "DVM U20w 2021"]
[Site "Kiel"]
[Date "2022.07.24"]
[Round "3"]
[White "Mohammad Dawed, Lizan"]
[Black "Weiß, Sara"]
[Result "1-0"]
[ECO "A45"]
[WhiteElo "799"]
[BlackElo "714"]
[Annotator "NA RC COMBH"]
[PlyCount "74"]
[EventDate "2022.07.23"]
[EventType "team-tourn"]
[EventRounds "7"]
[EventCountry "GER"]
[SourceTitle "playchess.com"]
[Source "ChessBase"]
[SourceQuality "1"]
[TimeControl "40/5400+30:1800+30"]

1. d4 {[%emt 0:00:05]} Nf6 {[%emt 0:00:12]} 2. Bf4 {[%emt 0:00:11]} g6 {[%emt 0:00:12]} 3. e3 {[%emt 0:00:38]} Bg7 {[%emt 0:01:24]} 4. Bc4 {[%emt 0:00:06]} O-O {[%emt 0:00:13]} 5. Nh3 {[%emt 0:00:46]} d6 {[%emt 0:00:23]} 6. Qf3 {[%emt 0:00:36]} Nc6 {[%emt 0:01:17]} 7. Bb5 {[%emt 0:00:28]} Bg4 {[%emt 0:00:30]} 8. Qg3 {[%emt 0:00:45]} Ne4 {[%emt 0:00:37]} 9. Qxg4 {[%emt 0:00:28]} e5 {[%emt 0:01:01]} 10. Bxc6 {[%emt 0:00:50]} bxc6 {[%emt 0:00:13]} 11. Bg5 {[%emt 0:00:46]} f6 {[%emt 0:00:51]} 12. Bh6 {[%emt 0:01:57]} f5 {[%emt 0:00:11]} 13. Bg5 {[%emt 0:03:05]} fxg4 {[%emt 0:00:30]} 14. Bxd8 {[%emt 0:00:46]} Raxd8 {[%emt 0:00:30]} 15. f3 {[%emt 0:03:06]} gxf3 {[%emt 0:00:20]} 16. Rf1 {[%emt 0:00:14]} f2+ {[%emt 0:00:19]} 17. Nxf2 {[%emt 0:00:33]} Nxf2 {[%emt 0:00:26]} 18. Rxf2 {[%emt 0:00:11]} Rf7 {[%emt 0:00:17]} 19. Rxf7 {[%emt 0:00:29]} Kxf7 {[%emt 0:00:10]} 20. c3 {[%emt 0:00:17]} c5 {[%emt 0:00:12]} 21. d5 {[%emt 0:01:02]} e4 {[%emt 0:00:18]} 22. Nd2 {[%emt 0:00:18]} Be5 {[%emt 0:00:34]} 23. g3 {[%emt 0:00:21]} h5 {[%emt 0:00:13]} 24. Nxe4 {[%emt 0:00:09]} Bxg3+ {[%emt 0:01:57]} 25. hxg3 {[%emt 0:00:28]} Re8 {[%emt 0:00:11]} 26. Ng5+ {[%emt 0:00:38]} Kf6 {[%emt 0:00:10]} 27. Nh7+ {[%emt 0:00:04]} Kg7 {[%emt 0:00:13]} 28. Ng5 {[%emt 0:00:17]} Re5 {[%emt 0:00:23]} 29. Nf3 {[%emt 0:00:06]} Rxd5 {[%emt 0:00:13]} 30. Rd1 {[%emt 0:00:33]} Rf5 {[%emt 0:00:11]} 31. Nh4 {[%emt 0:00:29]} Re5 {[%emt 0:00:14]} 32. Ke2 {[%emt 0:00:21]} g5 {[%emt 0:00:19]} 33. Nf3 {[%emt 0:00:26]} Rf5 {[%emt 0:00:12]} 34. Rf1 {[%emt 0:00:06]} g4 {[%emt 0:00:12]} 35. Nh4 {[%emt 0:00:30]} Rxf1 {[%emt 0:00:44]} 36. Kxf1 {[%emt 0:00:20]} Kf6 {[%emt 0:00:21]} 37. e4 {[%emt 0:00:16]} Ke5 {[%emt 0:00:55]} 1-0

[Event "DVM U20w 2021"]
[Site "Kiel"]
[Date "2022.07.24"]
[Round "4"]
[White "Hrebenshchykova, Yelyzaveta"]
[Black "Tabakh, Tassnim"]
[Result "1-0"]
[ECO "B13"]
[WhiteElo "2088"]
[BlackElo "1241"]
[Annotator "TA"]
[PlyCount "59"]
[EventDate "2022.07.23"]
[EventType "team-tourn"]
[EventRounds "7"]
[EventCountry "GER"]
[SourceTitle "playchess.com"]
[Source "ChessBase"]
[SourceQuality "1"]
[TimeControl "40/5400+30:1800+30"]

{[%evp 9,59,14,22,19,75,68,163,156,190,121,264,285,281,183,191,192,232,227,322,311,599,606,607,601,581,421,573,471,520,514,520,517,550,531,521,522,510,499,483,478,621,621,899,685,1060,966,1778,1769,29991,29992,29992,29981]} 1. e4 {[%emt 0:00:04]} c6 {[%emt 0:00:07][%cal Bc7c6,Bc6d5][%mdl 32]} 2. d4 {[%emt 0:06:34]} d5 {[%emt 0:00:08]} 3. exd5 {[%emt 0:00:58]} cxd5 {[%emt 0:00:08]} 4. c4 {[%emt 0:00:04]} e6 {[%emt 0:01:06]} 5. Nc3 {[%emt 0:00:13]} Bb4 {[%emt 0:03:03]} 6. Nf3 {[%emt 0:11:46] B13: Caro-Kann: Exchange Variation and Panov-Botvinnik Attack.} (6. cxd5 {looks sharper.} exd5 7. Bd3 Nf6 8. a3) 6... Bxc3+ {[%emt 0:00:50]} (6... Nf6 $11 {remains equal.}) 7. bxc3 $16 {[%emt 0:00:06]} b6 {[%emt 0:05:17]} (7... Ne7 $14) 8. cxd5 {[%emt 0:05:28] White is clearly better.} exd5 {[%emt 0:02:03] [#]} 9. Ne5 $146 {[%emt 0:00:56]} (9. Bb5+ $18 Bd7 10. Bd3 (10. Bg5 f6 $11)) ({Predecessor:} 9. Qb3 Be6 10. Bb5+ Nd7 11. Ne5 Ne7 12. O-O O-O 13. Re1 Nxe5 14. Rxe5 Ng6 15. Re3 {1-0 (34) Remolar Gallen,J (2110)-Brisa Vega,P (1481) Valencia 2012}) 9... Qe7 {[%emt 0:04:43] A mistake that costs the game.} (9... Ne7 $16) 10. Bb5+ $18 {[%emt 0:10:27]} Bd7 {[%emt 0:01:55]} 11. Bxd7+ {[%emt 0:01:19]} Nxd7 {[%emt 0:00:51]} 12. O-O {[%emt 0:00:07][%cal Bh1f1,Bf1e1,Be1e5,Be5e7,Be7e3,Be3g3][%mdl 32] Hoping for Nc6.} Nxe5 {[%emt 0:00:59]} 13. Re1 {[%emt 0:00:40][%mdl 64] [#] Pin} ({Less strong is} 13. dxe5 Qd7 $14) 13... Qd7 {[%emt 0:09:36]} (13... O-O-O $142 14. dxe5 (14. Rxe5 Qd7 $16) 14... Qd7) 14. Rxe5+ {[%emt 0:01:51]} Ne7 $2 {[%emt 0:00:36]} (14... Kd8 {was called for.} 15. Qf3 Nf6) 15. Ba3 {[%emt 0:01:28]} O-O {[%emt 0:04:39]} 16. Rxe7 {[%emt 0:00:21]} Qc6 {[%emt 0:01:05]} 17. Qd2 {[%emt 0:01:52]} Rac8 {[%emt 0:01:01]} 18. Re3 {[%emt 0:00:26]} Rfd8 {[%emt 0:00:43]} 19. Rae1 {[%emt 0:00:28]} h6 {[%emt 0:02:07]} 20. h3 {[%emt 0:01:24]} a5 {[%emt 0:04:07]} 21. Rg3 {[%emt 0:02:29]} Re8 {[%emt 0:01:49]} 22. Re5 {[%emt 0:08:14]} Re6 {[%emt 0:02:29]} 23. Rxe6 {[%emt 0:04:14]} Qxe6 {[%emt 0:00:36]} 24. Qe3 {[%emt 0:00:07]} Qc6 {[%emt 0:01:20]} 25. Qe5 {[%emt 0:00:28][%csl Gg3][%cal Re5g7] [#]} g6 {[%emt 0:01:15]} 26. Qf4 {[%emt 0:02:14]} g5 {[%emt 0:01:26]} 27. h4 {[%emt 0:04:26]} f6 {[%emt 0:01:15]} 28. Qf5 {[%emt 0:00:10] Intending Qg6+ and mate.} Kh8 {[%emt 0:02:27]} 29. Be7 {[%emt 0:01:08]} Kg7 {[%emt 0:01:09]} 30. Bxf6+ {[%emt 0:00:11] Weighted Error Value: White=0.28 (precise) /Black=0.67} 1-0

[Event "DVM U20w 2021"]
[Site "Kiel"]
[Date "2022.07.24"]
[Round "4"]
[White "Peglau, Mirjam"]
[Black "Eichhorn, Elisabeth"]
[Result "1-0"]
[ECO "E81"]
[WhiteElo "1876"]
[BlackElo "1325"]
[Annotator "NA COMBH"]
[PlyCount "65"]
[EventDate "2022.07.23"]
[EventType "team-tourn"]
[EventRounds "7"]
[EventCountry "GER"]
[SourceTitle "playchess.com"]
[Source "ChessBase"]
[SourceQuality "1"]
[TimeControl "40/5400+30:1800+30"]

1. d4 {[%emt 0:00:01]} Nf6 {[%emt 0:00:09]} 2. c4 {[%emt 0:00:05]} g6 {[%emt 0:00:13]} 3. Nc3 {[%emt 0:00:07]} Bg7 {[%emt 0:00:07]} 4. e4 {[%emt 0:00:05]} d6 {[%emt 0:01:01]} 5. f3 {[%emt 0:02:00]} Nfd7 {[%emt 0:04:47]} 6. Be3 {[%emt 0:00:46]} O-O {[%emt 0:00:12]} 7. Bd3 {[%emt 0:00:33]} Re8 {[%emt 0:04:01]} 8. Nge2 {[%emt 0:00:18]} c6 {[%emt 0:01:14]} 9. O-O {[%emt 0:00:50]} Qc7 {[%emt 0:02:00]} 10. Rc1 {[%emt 0:00:38]} c5 {[%emt 0:04:55]} 11. Qd2 {[%emt 0:02:36]} Nc6 {[%emt 0:02:13]} 12. dxc5 {[%emt 0:04:35]} dxc5 {[%emt 0:00:33]} 13. b3 {[%emt 0:05:48]} Nd4 {[%emt 0:17:19]} 14. Nd5 {[%emt 0:06:01]} Qd6 {[%emt 0:04:28]} 15. f4 {[%emt 0:07:14]} e5 {[%emt 0:13:47]} 16. Bb1 {[%emt 0:10:18]} Nxe2+ {[%emt 0:06:31]} 17. Qxe2 {[%emt 0:00:14]} Nb6 {[%emt 0:03:58]} 18. Rcd1 {[%emt 0:02:19]} Bd7 {[%emt 0:02:36]} 19. Nxb6 {[%emt 0:01:19]} Qxb6 {[%emt 0:00:46]} 20. Rxd7 {[%emt 0:00:08]} Qc6 {[%emt 0:01:48]} 21. Rd5 {[%emt 0:00:27]} b6 {[%emt 0:01:58]} 22. f5 {[%emt 0:00:22]} Rf8 {[%emt 0:03:41]} 23. Qf3 {[%emt 0:02:31]} Rac8 {[%emt 0:01:24]} 24. f6 {[%emt 0:00:15]} Bh8 {[%emt 0:00:50]} 25. Rxe5 {[%emt 0:00:08]} Rcd8 {[%emt 0:04:15]} 26. Rd5 {[%emt 0:02:36]} Rfe8 {[%emt 0:01:04]} 27. g4 {[%emt 0:00:58]} Rxd5 {[%emt 0:12:48]} 28. cxd5 {[%emt 0:01:23]} Qd6 {[%emt 0:00:43]} 29. g5 {[%emt 0:00:33]} Rd8 {[%emt 0:01:52]} 30. Bf4 {[%emt 0:00:41]} Qd7 {[%emt 0:00:32]} 31. Rd1 {[%emt 0:01:10]} Kf8 {[%emt 0:00:43]} 32. e5 {[%emt 0:01:32]} Re8 {[%emt 0:01:03]} 33. Be4 {[%emt 0:06:00]} 1-0

[Event "DVM U20w 2021"]
[Site "Kiel"]
[Date "2022.07.24"]
[Round "4"]
[White "Muedder, Melanie"]
[Black "Bangsa-Giesen, Citra"]
[Result "1-0"]
[ECO "B56"]
[WhiteElo "1865"]
[BlackElo "1420"]
[Annotator "NA COMBH"]
[PlyCount "47"]
[EventDate "2022.07.23"]
[EventType "team-tourn"]
[EventRounds "7"]
[EventCountry "GER"]
[SourceTitle "playchess.com"]
[Source "ChessBase"]
[SourceQuality "1"]
[TimeControl "40/5400+30:1800+30"]

1. e4 {[%emt 0:00:02]} c5 {[%emt 0:00:17]} 2. Nf3 {[%emt 0:00:06]} d6 {[%emt 0:00:17]} 3. d4 {[%emt 0:00:12]} cxd4 {[%emt 0:00:13]} 4. Nxd4 {[%emt 0:00:06]} Nf6 {[%emt 0:01:01]} 5. Nc3 {[%emt 0:00:10]} Nc6 {[%emt 0:02:41]} 6. f3 {[%emt 0:00:42]} e6 {[%emt 0:07:23]} 7. g4 {[%emt 0:05:03]} d5 {[%emt 0:01:15]} 8. g5 {[%emt 0:03:08]} Ng8 {[%emt 0:03:51]} 9. exd5 {[%emt 0:07:24]} exd5 {[%emt 0:01:27]} 10. Qe2+ {[%emt 0:03:30]} Nge7 {[%emt 0:04:46]} 11. Be3 {[%emt 0:02:21]} Nxd4 {[%emt 0:05:38]} 12. Bxd4 {[%emt 0:00:09]} Be6 {[%emt 0:00:58]} 13. O-O-O {[%emt 0:04:07]} Nc6 {[%emt 0:01:23]} 14. f4 {[%emt 0:02:16]} Qd7 {[%emt 0:05:41]} 15. f5 {[%emt 0:04:48]} Nxd4 {[%emt 0:01:36]} 16. Rxd4 {[%emt 0:00:12]} Bc5 {[%emt 0:01:11]} 17. Rxd5 {[%emt 0:01:00]} Bd6 {[%emt 0:06:12]} 18. fxe6 {[%emt 0:00:56]} fxe6 {[%emt 0:00:13]} 19. Bh3 {[%emt 0:00:43]} Kf7 {[%emt 0:08:51]} 20. Rf1+ {[%emt 0:01:02]} Kg6 {[%emt 0:13:51]} 21. Qe4+ {[%emt 0:01:18]} Kh5 {[%emt 0:01:04]} 22. g6+ {[%emt 0:05:36]} Kh6 {[%emt 0:06:36]} 23. Qh4+ {[%emt 0:00:09]} Kxg6 {[%emt 0:00:08]} 24. Qg5# {[%emt 0:00:36]} 1-0

[Event "DVM U20w 2021"]
[Site "Kiel"]
[Date "2022.07.24"]
[Round "4"]
[White "Brunner, Sophia"]
[Black "Rempe, Mieke"]
[Result "1-0"]
[ECO "C22"]
[WhiteElo "1804"]
[BlackElo "1646"]
[Annotator "NA COMBH"]
[PlyCount "49"]
[EventDate "2022.07.23"]
[EventType "team-tourn"]
[EventRounds "7"]
[EventCountry "GER"]
[SourceTitle "playchess.com"]
[Source "ChessBase"]
[SourceQuality "1"]
[TimeControl "40/5400+30:1800+30"]

1. e4 {[%emt 0:00:03]} e5 {[%emt 0:00:06]} 2. d4 {[%emt 0:01:19]} exd4 {[%emt 0:02:56]} 3. Qxd4 {[%emt 0:00:19]} Nc6 {[%emt 0:01:15]} 4. Qe3 {[%emt 0:04:15]} b6 {[%emt 0:02:43]} 5. Nc3 {[%emt 0:01:05]} Bb7 {[%emt 0:02:40]} 6. a3 {[%emt 0:00:35]} Bc5 {[%emt 0:05:40]} 7. Qg3 {[%emt 0:03:29]} Bd4 {[%emt 0:05:22]} 8. Nd5 {[%emt 0:15:59]} d6 {[%emt 0:03:05]} 9. c3 {[%emt 0:05:11]} Bf6 {[%emt 0:03:23]} 10. Bc4 {[%emt 0:03:46]} Ne5 {[%emt 0:04:58]} 11. Be2 {[%emt 0:12:18]} c6 {[%emt 0:05:22]} 12. Nxf6+ {[%emt 0:01:19]} Qxf6 {[%emt 0:06:39]} 13. Nf3 {[%emt 0:07:13]} h6 {[%emt 0:06:51]} 14. Bf4 {[%emt 0:02:00]} Nxf3+ {[%emt 0:02:07]} 15. Bxf3 {[%emt 0:00:49]} Rd8 {[%emt 0:05:29]} 16. O-O-O {[%emt 0:07:33]} Ne7 {[%emt 0:07:19]} 17. Rxd6 {[%emt 0:02:47]} Rxd6 {[%emt 0:00:08]} 18. Bxd6 {[%emt 0:00:07]} O-O {[%emt 0:01:28]} 19. Be5 {[%emt 0:05:09]} Qg6 {[%emt 0:00:31]} 20. Rd1 {[%emt 0:00:36]} f6 {[%emt 0:03:23]} 21. Bf4 {[%emt 0:04:44]} Bc8 {[%emt 0:03:13]} 22. Rd6 {[%emt 0:07:08]} c5 {[%emt 0:02:03]} 23. h4 {[%emt 0:02:45]} Qg5 {[%emt 0:00:39]} 24. Qg4 Qxg4 {[%emt 0:00:30]} 25. Bg3 {[%emt 0:00:38]} 1-0

[Event "DVM U20w 2021"]
[Site "Kiel"]
[Date "2022.07.24"]
[Round "4"]
[White "Peglau, Sarah"]
[Black "Basovskiy, Jana"]
[Result "1/2-1/2"]
[ECO "A50"]
[WhiteElo "1782"]
[BlackElo "1867"]
[Annotator "NA COMBH"]
[PlyCount "76"]
[EventDate "2022.07.23"]
[EventType "team-tourn"]
[EventRounds "7"]
[EventCountry "GER"]
[SourceTitle "playchess.com"]
[Source "ChessBase"]
[SourceQuality "1"]
[TimeControl "40/5400+30:1800+30"]

1. c4 {[%emt 0:00:04]} Nf6 {[%emt 0:00:06]} 2. Nc3 {[%emt 0:00:41]} Nc6 {[%emt 0:00:19]} 3. d4 {[%emt 0:09:44]} e5 {[%emt 0:00:08]} 4. d5 {[%emt 0:02:09]} Ne7 {[%emt 0:00:11]} 5. e4 {[%emt 0:08:13]} Ng6 {[%emt 0:00:23]} 6. a3 {[%emt 0:02:25]} Bc5 {[%emt 0:01:03]} 7. Nf3 {[%emt 0:01:51]} Ng4 {[%emt 0:02:48]} 8. Be3 {[%emt 0:10:07]} Nxe3 {[%emt 0:09:55]} 9. fxe3 {[%emt 0:00:04]} Bxe3 {[%emt 0:00:08]} 10. Qd3 {[%emt 0:02:46]} Bc5 {[%emt 0:09:57]} 11. O-O-O {[%emt 0:18:28]} d6 {[%emt 0:11:33]} 12. b4 {[%emt 0:00:50]} Bb6 {[%emt 0:00:14]} 13. h4 {[%emt 0:01:24]} h6 {[%emt 0:12:03]} 14. h5 {[%emt 0:05:59]} Nf4 {[%emt 0:08:17]} 15. Qd2 {[%emt 0:00:24]} Bg4 {[%emt 0:00:07]} 16. Be2 {[%emt 0:23:50]} a5 {[%emt 0:08:59]} 17. b5 {[%emt 0:08:38]} Bc5 {[%emt 0:00:13]} 18. Kb2 {[%emt 0:00:22]} Nxe2 {[%emt 0:02:02]} 19. Qxe2 {[%emt 0:01:04]} Bd4 {[%emt 0:03:15]} 20. Qd3 {[%emt 0:00:24]} Bxf3 {[%emt 0:05:20]} 21. gxf3 {[%emt 0:00:37]} Qg5 {[%emt 0:00:41]} 22. Rde1 {[%emt 0:00:46]} Qg2+ {[%emt 0:05:58]} 23. Kb3 {[%emt 0:00:02]} O-O {[%emt 0:06:57]} 24. Ne2 {[%emt 0:00:24]} a4+ {[%emt 0:02:00]} 25. Kc2 {[%emt 0:00:55]} Bc5 {[%emt 0:00:22]} 26. Kb1 {[%emt 0:00:36]} Qg5 {[%emt 0:00:38]} 27. Nc3 {[%emt 0:00:31]} Bxa3 {[%emt 0:02:15]} 28. Reg1 {[%emt 0:00:14]} Qf6 {[%emt 0:00:19]} 29. Qd1 {[%emt 0:00:47]} Bc5 {[%emt 0:00:15]} 30. Rg4 {[%emt 0:00:17]} a3 {[%emt 0:00:39]} 31. Rh3 {[%emt 0:00:41]} Kh8 {[%emt 0:01:07]} 32. Qe2 {[%emt 0:00:29]} Bd4 {[%emt 0:00:36]} 33. Qd2 {[%emt 0:00:39]} Kh7 {[%emt 0:02:21]} 34. Ka2 {[%emt 0:00:29]} Rg8 {[%emt 0:02:40]} 35. f4 {[%emt 0:00:06]} Bc5 {[%emt 0:02:08]} 36. f5 {[%emt 0:00:20]} Bb4 {[%emt 0:01:21]} 37. Qc2 {[%emt 0:00:40]} Bxc3 {[%emt 0:00:42]} 38. Rxc3 {[%emt 0:00:21]} b6 {[%emt 0:00:30]} 1/2-1/2

[Event "DVM U20w 2021"]
[Site "Kiel"]
[Date "2022.07.24"]
[Round "4"]
[White "Sereda, Yaroslava"]
[Black "Neumeier, Valentina"]
[Result "1-0"]
[ECO "C86"]
[WhiteElo "1781"]
[BlackElo "1392"]
[Annotator "NA COMBH"]
[PlyCount "77"]
[EventDate "2022.07.23"]
[EventType "team-tourn"]
[EventRounds "7"]
[EventCountry "GER"]
[SourceTitle "playchess.com"]
[Source "ChessBase"]
[SourceQuality "1"]
[TimeControl "40/5400+30:1800+30"]

1. e4 {[%emt 0:00:02]} e5 {[%emt 0:00:03]} 2. Nf3 {[%emt 0:00:09]} Nc6 {[%emt 0:00:05]} 3. Bb5 {[%emt 0:00:11]} a6 {[%emt 0:00:11]} 4. Ba4 {[%emt 0:00:08]} b5 {[%emt 0:00:05]} 5. Bb3 {[%emt 0:00:07]} Nf6 {[%emt 0:00:03]} 6. Qe2 {[%emt 0:00:12]} Be7 {[%emt 0:01:00]} 7. c3 {[%emt 0:01:12]} d6 {[%emt 0:01:57]} 8. O-O {[%emt 0:01:16]} Bg4 {[%emt 0:01:09]} 9. h3 {[%emt 0:02:25]} Bh5 {[%emt 0:00:35]} 10. a4 {[%emt 0:17:31]} Na5 {[%emt 0:09:43]} 11. Bc2 {[%emt 0:01:18]} c6 {[%emt 0:03:58]} 12. d4 {[%emt 0:04:24]} exd4 {[%emt 0:06:57]} 13. cxd4 {[%emt 0:08:45]} O-O {[%emt 0:05:54]} 14. Nbd2 {[%emt 0:02:14]} Qb6 {[%emt 0:03:42]} 15. Rd1 {[%emt 0:06:07]} Rfe8 {[%emt 0:07:35]} 16. Nf1 {[%emt 0:02:51]} Bd8 {[%emt 0:03:46]} 17. Ng3 {[%emt 0:06:29]} Bg6 {[%emt 0:04:56]} 18. axb5 {[%emt 0:06:17]} cxb5 {[%emt 0:03:54]} 19. Bd2 {[%emt 0:08:02]} Nc6 {[%emt 0:04:28]} 20. Bf4 {[%emt 0:06:03]} Bc7 {[%emt 0:03:44]} 21. Rac1 {[%emt 0:09:46]} Nxe4 {[%emt 0:07:14]} 22. Bxe4 {[%emt 0:04:31]} Bxe4 {[%emt 0:01:59]} 23. Nxe4 {[%emt 0:00:26]} f5 {[%emt 0:02:59]} 24. Qc2 {[%emt 0:01:21]} Nb4 {[%emt 0:06:17]} 25. Qb3+ {[%emt 0:01:05]} Kh8 {[%emt 0:02:10]} 26. Neg5 {[%emt 0:01:31]} h6 {[%emt 0:05:40]} 27. Nf7+ {[%emt 0:01:00]} Kh7 {[%emt 0:00:16]} 28. Qxb4 {[%emt 0:00:16]} Re6 {[%emt 0:01:17]} 29. N7g5+ {[%emt 0:02:54]} hxg5 {[%emt 0:01:03]} 30. Nxg5+ {[%emt 0:00:07]} Kg8 {[%emt 0:00:19]} 31. Nxe6 {[%emt 0:00:08]} Bb8 {[%emt 0:00:51]} 32. Qb3 {[%emt 0:00:29]} Kh7 {[%emt 0:01:07]} 33. Qd5 {[%emt 0:00:09]} Ra7 {[%emt 0:00:27]} 34. Qxf5+ {[%emt 0:00:14]} g6 {[%emt 0:01:21]} 35. Nf8+ {[%emt 0:00:24]} Kg8 {[%emt 0:01:18]} 36. Nxg6 {[%emt 0:01:11]} Rf7 {[%emt 0:00:40]} 37. Ne7+ {[%emt 0:03:09]} Rxe7 {[%emt 0:00:51]} 38. Qg6+ {[%emt 0:00:13]} Rg7 {[%emt 0:00:45]} 39. Rc8+ {[%emt 0:00:11]} 1-0